fUST/lending_fUST_20250615
["ID","MTS","AMOUNT","RATE_DAILY","PERIOD"]
[365972705,1750001440951,-1000.0,0.00021835,2]
[365972707,1750001440961,-1000.0,0.00021835,2]
[365972709,1750001440970,-1000.0,0.00021835,2]
[365972711,1750001440979,-374.04,0.00021835,2]
[365972713,1750001440989,-500.0,0.00021851,3]
[365972715,1750001440999,-953.74889468,0.00021866,6]
[365972717,1750001441012,-13888.56007377,0.000219,2]
[365972718,1750001441022,-203.68112716,0.00021917,2]
[365972721,1750001441032,-500.0,0.00021917,2]
[365972723,1750001441041,-500.0,0.00021917,2]
[365972725,1750001441051,-500.0,0.00021917,2]
[365972726,1750001441061,-500.0,0.00021917,2]
[365972728,1750001441070,-500.0,0.00021917,2]
[365972730,1750001441080,-500.0,0.00021917,2]
[365972732,1750001441090,-500.0,0.00021917,2]
[365972735,1750001441101,-500.0,0.00021917,2]
[365972737,1750001441110,-500.0,0.00021917,2]
[365972739,1750001441120,-504.23576132,0.00021917,2]
[365972741,1750001441130,-460.0,0.00021917,2]
[365972743,1750001441139,-634.94,0.00021917,2]
[365972745,1750001441150,-722.8,0.00021917,2]
[365972747,1750001441159,-817.43,0.00021917,2]
[365972749,1750001441169,-586.47,0.00021917,2]
[365972751,1750001441179,-460.0,0.00021917,2]
[365972753,1750001441188,-754.6,0.00021917,2]
[365972755,1750001441198,-460.0,0.00021917,2]
[365972757,1750001441208,-562.51,0.00021917,2]
[365972759,1750001441217,-460.0,0.00021917,2]
[365972761,1750001441227,-460.0,0.00021917,2]
[365972763,1750001441236,-460.0,0.00021917,2]
[365972765,1750001441246,-500.0,0.00021917,2]
[365972767,1750001441259,-500.0,0.00021917,2]
[365972769,1750001441269,-500.0,0.00021917,2]
[365972771,1750001441279,-460.0,0.00021917,2]
[365972773,1750001441288,-460.0,0.00021917,2]
[365972775,1750001441297,-851.91,0.00021917,2]
[365972777,1750001441307,-463.69,0.00021917,2]
[365972779,1750001441317,-539.36,0.00021917,2]
[365972781,1750001441326,-500.0,0.00021918,2]
[365972783,1750001441336,-500.0,0.00021918,2]
[365972785,1750001441345,-500.0,0.00021918,2]
[365972787,1750001441354,-500.0,0.00021918,2]
[365972789,1750001441364,-500.0,0.00021918,2]
[365972791,1750001441373,-500.0,0.00021918,2]
[365972793,1750001441382,-500.0,0.00021918,2]
[365972795,1750001441392,-500.0,0.00021918,2]
[365972797,1750001441403,-500.0,0.00021918,2]
[365972799,1750001441413,-500.0,0.00021918,2]
[365972801,1750001441422,-500.0,0.00021918,2]
[365972802,1750001441431,-500.0,0.00021918,2]
[365972804,1750001441441,-500.0,0.00021918,2]
[365972806,1750001441451,-500.0,0.00021918,2]
[365972808,1750001441460,-500.0,0.00021918,2]
[365972810,1750001441469,-500.0,0.00021918,2]
[365972812,1750001441479,-500.0,0.00021918,2]
[365972814,1750001441488,-500.0,0.00021918,2]
[365972816,1750001441498,-500.0,0.00021918,2]
[365972818,1750001441513,-500.0,0.00021918,2]
[365972820,1750001441522,-500.0,0.00021918,2]
[365972822,1750001441532,-500.0,0.00021918,2]
[365972824,1750001441541,-500.0,0.00021918,2]
[365972826,1750001441551,-500.0,0.00021918,2]
[365972828,1750001441560,-500.0,0.00021918,2]
[365972830,1750001441570,-500.0,0.00021918,2]
[365972832,1750001441581,-500.0,0.00021918,2]
[365972834,1750001441591,-415.03988424,0.00021918,2]
[365972836,1750001441600,-500.0,0.00021918,2]
[365972838,1750001441610,-1000.0,0.00021921,2]
[365972839,1750001441619,-500.0,0.00021973,2]
[365972841,1750001441629,-504.43395862,0.00021973,2]
[365972843,1750001441638,-500.0,0.00021973,2]
[365972844,1750001441647,-500.0,0.00021973,2]
[365972846,1750001441656,-160.63259287,0.00021973,2]
[365972848,1750001441665,-500.0,0.00021973,2]
[365972850,1750001441675,-500.0,0.00021973,2]
[365972851,1750001441684,-506.87102913,0.00021973,2]
[365972853,1750001441694,-500.0,0.00021973,2]
[365972855,1750001441703,-500.0,0.00021973,2]
[365972857,1750001441713,-500.0,0.00021973,2]
[365972858,1750001441723,-502.62722475,0.00021973,2]
[365972860,1750001441732,-600.0,0.00021973,2]
[365972862,1750001441741,-500.0,0.00021973,2]
[365972863,1750001441751,-500.0,0.00021973,2]
[365972865,1750001441761,-516.93256002,0.00021973,2]
[365972867,1750001441772,-12612.59688001,0.0002199,2]
[365972869,1750001441782,-165.0,0.00022,2]
[365972871,1750001441792,-164.0,0.00022,2]
[365972872,1750001441802,-113506.73,0.00022,7]
[365972874,1750001441812,-186.0,0.00022,2]
[365972876,1750001441822,-12535.62630729,0.00022,7]
[365972878,1750001441831,-172.0,0.00022,2]
[365972879,1750001441840,-395.20413537,0.00022,2]
[365972881,1750001441850,-136289.78546048,0.00022,2]
[365972883,1750001441859,-153.0,0.00022,2]
[365972884,1750001441869,-153.0,0.00022,2]
[365972886,1750001441879,-153.0,0.00022,2]
[365972888,1750001441888,-153.0,0.00022,2]
[365972889,1750001441898,-153.0,0.00022,2]
[365972891,1750001441907,-153.0,0.00022,2]
[365972893,1750001441916,-153.0,0.00022,2]
[365972894,1750001441926,-153.0,0.00022,2]
[365972896,1750001441936,-153.0,0.00022,2]
[365972898,1750001441946,-153.0,0.00022,2]
[365972900,1750001441955,-153.0,0.00022,2]
[365972901,1750001441964,-153.0,0.00022,2]
[365972903,1750001441974,-153.0,0.00022,2]
[365972905,1750001441983,-153.0,0.00022,2]
[365972906,1750001441992,-153.0,0.00022,2]
[365972908,1750001442003,-153.0,0.00022,2]
[365972910,1750001442013,-153.0,0.00022,2]
[365972912,1750001442023,-153.0,0.00022,2]
[365972914,1750001442032,-153.0,0.00022,2]
[365972916,1750001442042,-153.0,0.00022,2]
[365972917,1750001442051,-153.0,0.00022,2]
[365972919,1750001442061,-153.0,0.00022,2]
[365972921,1750001442071,-153.0,0.00022,2]
[365972923,1750001442080,-153.0,0.00022,2]
[365972924,1750001442089,-153.0,0.00022,2]
[365972926,1750001442098,-153.0,0.00022,2]
[365972928,1750001442107,-153.0,0.00022,2]
[365972930,1750001442117,-153.0,0.00022,2]
[365972932,1750001442126,-153.0,0.00022,2]
[365972933,1750001442136,-153.0,0.00022,2]
[365972935,1750001442145,-153.0,0.00022,2]
[365972937,1750001442158,-153.0,0.00022,2]
[365972939,1750001442168,-153.0,0.00022,2]
[365972941,1750001442178,-953.74889468,0.00022003,6]
[365972943,1750001442187,-1688.0,0.00022121,2]
[365972944,1750001442197,-207.4,0.00022121,2]
[365972946,1750001442207,-151.0,0.00022121,2]
[365972948,1750001442216,-151.0,0.00022121,2]
[365972950,1750001442226,-151.0,0.00022121,2]
[365972952,1750001442235,-151.0,0.00022121,2]
[365972953,1750001442243,-500.0,0.00022121,2]
[365972954,1750001442254,-151.0,0.00022121,2]
[365972956,1750001442263,-500.0,0.00022121,2]
[365972958,1750001442274,-500.0,0.00022121,2]
[365972959,1750001442284,-151.0,0.00022121,2]
[365972961,1750001442293,-5000.0,0.00022121,2]
[365972963,1750001442303,-500.0,0.00022121,2]
[365972965,1750001442313,-226.76390347,0.00022121,2]
[365972966,1750001442323,-500.0,0.00022121,2]
[365972968,1750001442333,-500.0,0.00022121,2]
[365972970,1750001442343,-500.0,0.00022121,2]
[365972972,1750001442354,-500.0,0.00022121,2]
[365972974,1750001442364,-500.0,0.00022121,2]
[365972975,1750001442374,-500.0,0.00022121,2]
[365972977,1750001442384,-500.0,0.00022121,2]
[365972979,1750001442394,-500.0,0.00022121,2]
[365972981,1750001442404,-500.0,0.00022121,2]
[365972983,1750001442414,-500.0,0.00022121,2]
[365972984,1750001442424,-500.0,0.00022121,2]
[365972986,1750001442433,-953.74889468,0.00022141,6]
[365972988,1750001442443,-1750.456,0.00022176,2]
[365972990,1750001442453,-437.03504658,0.00022186,2]
[365972991,1750001442463,-460.0,0.00022191,2]
[365972993,1750001442473,-634.94,0.00022191,2]
[365972995,1750001442482,-722.8,0.00022191,2]
[365972997,1750001442492,-817.43,0.00022191,2]
[365972999,1750001442504,-586.47,0.00022191,2]
[365973000,1750001442516,-460.0,0.00022191,2]
[365973002,1750001442526,-754.6,0.00022191,2]
[365973004,1750001442535,-239.76875873,0.00022191,2]
[365973006,1750001442546,-562.51,0.00022191,2]
[365973008,1750001442555,-460.0,0.00022191,2]
[365973009,1750001442564,-460.0,0.00022191,2]
[365973011,1750001442574,-460.0,0.00022191,2]
[365973013,1750001442584,-460.0,0.00022191,2]
[365973015,1750001442594,-460.0,0.00022191,2]
[365973016,1750001442604,-851.91,0.00022191,2]
[365973018,1750001442613,-463.69,0.00022191,2]
[365973020,1750001442623,-539.36,0.00022191,2]
[365973022,1750001442632,-37815.41,0.000222,2]
[365973024,1750001442642,-199.76697731,0.000222,69]
[365973025,1750001442651,-837.52739093,0.00022231,2]
[365973027,1750001442661,-600.0,0.0002226,2]
[365973029,1750001442670,-953.74889468,0.00022279,6]
[365973031,1750001442679,-422.04240225,0.00022337,2]
[365973033,1750001442689,-437.03504658,0.00022367,2]
[365973034,1750001442698,-953.74889468,0.00022417,7]
[365973036,1750001442708,-54671.0,0.0002243,4]
[365973038,1750001442717,-500.0,0.00022465,2]
[365973040,1750001442728,-460.0,0.00022465,2]
[365973042,1750001442737,-634.94,0.00022465,2]
[365973043,1750001442745,-722.8,0.00022465,2]
[365973045,1750001442757,-817.43,0.00022465,2]
[365973047,1750001442767,-586.47,0.00022465,2]
[365973049,1750001442778,-460.0,0.00022465,2]
[365973051,1750001442788,-754.6,0.00022465,2]
[365973053,1750001442797,-562.51,0.00022465,2]
[365973054,1750001442806,-460.0,0.00022465,2]
[365973056,1750001442816,-460.0,0.00022465,2]
[365973058,1750001442826,-460.0,0.00022465,2]
[365973060,1750001442835,-460.0,0.00022465,2]
[365973061,1750001442845,-460.0,0.00022465,2]
[365973063,1750001442854,-851.91,0.00022465,2]
[365973065,1750001442864,-463.69,0.00022465,2]
[365973067,1750001442874,-539.36,0.00022465,2]
[365973069,1750001442883,-1500.0,0.00022468,2]
[365973070,1750001442893,-500.0,0.00022521,2]
[365973072,1750001442903,-1000.0,0.00022521,2]
[365973074,1750001442913,-1000.0,0.00022521,2]
[365973076,1750001442922,-1000.0,0.00022521,2]
[365973078,1750001442932,-1200.0,0.00022521,2]
[365973089,1750001443057,-12647.88439071,0.00022534,2]
[365973147,1750001443528,-460.0,0.00019178,2]
[365973149,1750001443538,-590.16709814,0.00019452,2]
[365973151,1750001443547,-547.16,0.0002136,10]
[365973153,1750001443558,-208.42083498,0.00021875,2]
[365973154,1750001443568,-12252.11560929,0.00022534,2]
[365973156,1750001443577,-953.74889468,0.00022555,7]
[365973158,1750001443589,-302.74476182,0.00022558,2]
[365973160,1750001443598,-379.55,0.000226,7]
[365973162,1750001443607,-151.0,0.000226,5]
[365973163,1750001443616,-5000.0,0.00022669,2]
[365973165,1750001443627,-160.0,0.00022673,2]
[365973167,1750001443636,-953.74889468,0.00022693,7]
[365973169,1750001443646,-460.0,0.00022739,2]
[365973171,1750001443657,-634.94,0.00022739,2]
[365973173,1750001443666,-722.8,0.00022739,2]
[365973175,1750001443676,-817.43,0.00022739,2]
[365973176,1750001443685,-586.47,0.00022739,2]
[365973178,1750001443695,-460.0,0.00022739,2]
[365973180,1750001443705,-754.6,0.00022739,2]
[365973182,1750001443714,-562.51,0.00022739,2]
[365973184,1750001443723,-460.0,0.00022739,2]
[365973185,1750001443734,-460.0,0.00022739,2]
[365973187,1750001443743,-460.0,0.00022739,2]
[365973189,1750001443753,-460.0,0.00022739,2]
[365973191,1750001443762,-460.0,0.00022739,2]
[365973193,1750001443772,-851.91,0.00022739,2]
[365973195,1750001443782,-463.69,0.00022739,2]
[365973197,1750001443791,-539.36,0.00022739,2]
[365973198,1750001443800,-587.0,0.00022776,2]
[365973200,1750001443810,-587.0,0.00022776,2]
[365973202,1750001443820,-151.0,0.000228,10]
[365973204,1750001443829,-953.74889468,0.00022831,8]
[365973206,1750001443839,-422.04240225,0.00022868,2]
[365973208,1750001443848,-1000.0,0.0002296,5]
[365973210,1750001443857,-953.74889468,0.00022969,8]
[365973211,1750001443866,-5000.0,0.00022996,2]
[365973213,1750001443876,-19806.9377402,0.00022998,2]
[365973445,1750001447224,-0.25089159,0.00019178,2]
[365973764,1750001537718,1703.67516945,0.00024975,60]
[365973794,1750002406964,256.25,0.00024658,120]
[365973795,1750002435130,-213.69524621,0.00018186,2]
[365973796,1750002435154,-231.308014,0.00018237,2]
[365973797,1750002435178,-296.67820605,0.00018286,2]
[365973798,1750002436166,1000.0,0.00018,2]
[365973818,1750002442104,-251.35145945,0.00018286,2]
[365973819,1750002442129,-164.224603,0.00018513,2]
[365973820,1750002442153,-163.27350935,0.00018603,2]
[365973821,1750002442178,-272.12251559,0.00019018,2]
[365973822,1750002442203,-160.0,0.00019155,2]
[365973823,1750002442227,-300.0,0.00019177,2]
[365973824,1750002442253,-300.0,0.00019177,2]
[365973825,1750002442275,-430.94103402,0.00019178,2]
[365973826,1750002442297,-460.0,0.00019178,2]
[365973827,1750002442321,-274.55659888,0.00019178,2]
[365973828,1750002453146,-185.44340112,0.00019178,2]
[365973829,1750002453173,-460.0,0.00019178,2]
[365973830,1750002453195,-454.28802195,0.00019178,2]
[365973831,1750002453221,-401.82915316,0.00019178,2]
[365973832,1750002453245,-280.54865677,0.00019178,2]
[365973839,1750002535655,347.238467,0.00013699,2]
[365973840,1750002547143,-300.0,0.00018409,2]
[365973841,1750002547168,-500.0,0.0001841,2]
[365973842,1750002547192,-500.0,0.0001841,2]
[365973843,1750002547216,-500.0,0.0001841,2]
[365973844,1750002547241,-500.0,0.0001841,2]
[365973845,1750002547268,-500.0,0.0001841,2]
[365973846,1750002547292,-500.0,0.0001841,2]
[365973847,1750002547316,-500.0,0.0001841,2]
[365973848,1750002547339,-359.94426582,0.0001841,2]
[365973849,1750002547361,-500.0,0.0001841,2]
[365973850,1750002547383,-500.0,0.0001841,2]
[365973851,1750002547408,-500.0,0.0001841,2]
[365973852,1750002547434,-500.0,0.0001841,2]
[365973853,1750002547458,-500.0,0.0001841,2]
[365973854,1750002547480,-428.65565154,0.0001841,2]
[365973855,1750002547503,-370.41476091,0.0001841,2]
[365973856,1750002547528,-500.0,0.0001841,2]
[365973857,1750002547552,-500.0,0.0001841,2]
[365973858,1750002547575,-250.18029919,0.0001841,2]
[365973859,1750002547599,-500.0,0.0001841,2]
[365973860,1750002547622,-500.0,0.0001841,2]
[365973861,1750002547647,-283.87081126,0.0001841,2]
[365973862,1750002547671,-500.0,0.0001841,2]
[365973863,1750002547693,-500.0,0.0001841,2]
[365973864,1750002547717,-500.0,0.0001841,2]
[365973865,1750002547742,-500.0,0.0001841,2]
[365973866,1750002547764,-194.24282438,0.0001841,2]
[365973867,1750002547789,-500.0,0.0001841,2]
[365973868,1750002547813,-425.27534741,0.0001841,2]
[365973869,1750002547838,-500.0,0.0001841,2]
[365973870,1750002547861,-3108.38840803,0.00018411,2]
[365973872,1750002569208,-21791.61159197,0.00018411,2]
[365973873,1750002569231,-328.98452326,0.00019078,2]
[365973875,1750002632975,-300.0,0.00019177,2]
[365973876,1750002632986,-179.45134323,0.00019178,2]
[365973877,1750002632995,-460.0,0.00019178,2]
[365973878,1750002633005,-226.53535668,0.00019178,2]
[365973879,1750002633018,-460.0,0.00019178,2]
[365973880,1750002633030,-460.0,0.00019178,2]
[365973881,1750002633040,-460.0,0.00019178,2]
[365973882,1750002633051,-460.0,0.00019178,2]
[365973883,1750002633061,-238.93121441,0.00019178,2]
[365973884,1750002633071,-219.641774,0.00019178,2]
[365973885,1750002633081,-355.77672062,0.00019273,2]
[365973886,1750002633091,-165.80477311,0.00019345,2]
[365973887,1750002633102,-460.0,0.00019444,2]
[365973888,1750002633112,-440.0,0.00019444,2]
[365973889,1750002633122,-460.0,0.00019444,2]
[365973890,1750002633132,-328.30114213,0.00019444,2]
[365973891,1750002633141,-425.86542574,0.00019444,2]
[365973908,1750002638775,-89.53822665,0.00019444,2]
[365973909,1750002638786,-460.0,0.00019444,2]
[365973910,1750002638795,-460.0,0.00019444,2]
[365973911,1750002638806,-25.41083776,0.00019444,2]
[365973912,1750002638978,-533.32916224,0.00019444,2]
[365973913,1750002638988,-460.0,0.00019444,2]
[365973914,1750002638998,-460.0,0.00019444,2]
[365973915,1750002639007,-460.0,0.00019444,2]
[365973916,1750002639017,-299.36031382,0.00019444,2]
[365973917,1750002639029,-263.37941788,0.00019444,2]
[365973918,1750002639039,-380.58614971,0.00019444,2]
[365973919,1750002639049,-198.20786792,0.00019444,2]
[365973920,1750002639058,-460.0,0.00019446,2]
[365973921,1750002639069,-460.0,0.00019446,2]
[365973922,1750002639078,-460.0,0.00019446,2]
[365973923,1750002639087,-460.0,0.00019446,2]
[365973924,1750002639097,-299.92903306,0.00019446,2]
[365973925,1750002639106,-446.55237106,0.00019446,2]
[365973926,1750002639116,-460.0,0.00019448,2]
[365973927,1750002639126,-460.0,0.00019448,2]
[365973928,1750002639134,-460.0,0.00019448,2]
[365973929,1750002639144,-460.0,0.00019448,2]
[365973930,1750002639153,-460.0,0.00019448,2]
[365973931,1750002639163,-460.0,0.00019448,2]
[365973932,1750002639172,-460.0,0.00019449,2]
[365973933,1750002639181,-460.0,0.00019449,2]
[365973934,1750002639191,-460.0,0.00019449,2]
[365973935,1750002639200,-460.0,0.00019449,2]
[365973936,1750002639209,-460.0,0.00019449,2]
[365973937,1750002639219,-500.0,0.00019449,2]
[365973938,1750002639228,-460.0,0.00019451,2]
[365973939,1750002639237,-432.29220232,0.00019451,2]
[365973940,1750002639247,-460.0,0.00019451,2]
[365973941,1750002639257,-460.0,0.00019451,2]
[365973942,1750002639266,-460.0,0.00019451,2]
[365973943,1750002639275,-460.0,0.00019451,2]
[365973944,1750002639285,-460.0,0.00019451,2]
[365973945,1750002639295,-460.0,0.00019451,2]
[365973946,1750002639304,-460.0,0.00019451,2]
[365973947,1750002639314,-460.0,0.00019451,2]
[365973948,1750002639324,-460.0,0.00019451,2]
[365973949,1750002639333,-460.0,0.00019451,2]
[365973950,1750002639343,-460.0,0.00019451,2]
[365973951,1750002639353,-460.0,0.00019452,2]
[365973952,1750002639363,-539.36374232,0.00019594,2]
[365973953,1750002639373,-500.0,0.00019594,2]
[365973954,1750002639382,-500.0,0.00019594,2]
[365973955,1750002639392,-500.0,0.00019594,2]
[365973956,1750002639402,-500.0,0.00019594,2]
[365973957,1750002639411,-500.0,0.00019594,2]
[365973958,1750002639421,-500.0,0.00019594,2]
[365973959,1750002639430,-500.0,0.00019594,2]
[365973960,1750002639441,-500.0,0.00019594,2]
[365973961,1750002639450,-225.08411074,0.00019594,2]
[365973962,1750002639460,-500.0,0.00019594,2]
[365973963,1750002639470,-500.0,0.00019594,2]
[365973964,1750002639480,-500.0,0.00019594,2]
[365973965,1750002639490,-500.0,0.00019594,2]
[365973966,1750002639500,-500.0,0.00019594,2]
[365973967,1750002639509,-500.0,0.00019594,2]
[365973968,1750002639519,-16000.0,0.00019595,2]
[365973969,1750002639530,-7828.27089503,0.00019595,2]
[365973970,1750002639540,-500.0,0.00019617,2]
[365973971,1750002639551,-500.0,0.00019644,2]
[365973972,1750002639560,-500.0,0.00019672,2]
[365973973,1750002639570,-500.0,0.00019699,2]
[365973974,1750002639580,-558.74,0.00019718,2]
[365973975,1750002639590,-460.0,0.00019718,2]
[365973976,1750002639600,-460.0,0.00019718,2]
[365973977,1750002639610,-460.0,0.00019718,2]
[365973978,1750002639620,-460.0,0.0001972,2]
[365973979,1750002639630,-460.0,0.0001972,2]
[365973980,1750002639640,-239.76875873,0.0001972,2]
[365973981,1750002639651,-460.0,0.0001972,2]
[365973982,1750002639661,-460.0,0.00019722,2]
[365973983,1750002639670,-460.0,0.00019722,2]
[365973984,1750002639680,-460.0,0.00019723,2]
[365973985,1750002639690,-460.0,0.00019723,2]
[365973986,1750002639699,-460.0,0.00019723,2]
[365973987,1750002639708,-460.0,0.00019723,2]
[365973988,1750002639718,-460.0,0.00019723,2]
[365973989,1750002639727,-460.0,0.00019725,2]
[365973990,1750002639737,-460.0,0.00019725,2]
[365973991,1750002639746,-460.0,0.00019725,2]
[365973992,1750002639756,-460.0,0.00019725,2]
[365973993,1750002639766,-460.0,0.00019726,2]
[365973994,1750002639775,-500.0,0.00019727,2]
[365973995,1750002639786,-186.33012593,0.00019754,2]
[365973996,1750002639795,-558.74,0.00019992,2]
[365973997,1750002639806,-460.0,0.00019992,2]
[365973998,1750002639815,-460.0,0.00019992,2]
[365973999,1750002639824,-460.0,0.00019992,2]
[365974000,1750002639834,-460.0,0.00019994,2]
[365974001,1750002639843,-460.0,0.00019994,2]
[365974002,1750002639853,-460.0,0.00019994,2]
[365974003,1750002639862,-460.0,0.00019996,2]
[365974004,1750002639871,-460.0,0.00019996,2]
[365974005,1750002639881,-460.0,0.00019997,2]
[365974006,1750002639892,-460.0,0.00019997,2]
[365974007,1750002639901,-460.0,0.00019997,2]
[365974008,1750002639911,-460.0,0.00019997,2]
[365974009,1750002639920,-460.0,0.00019997,2]
[365974010,1750002639930,-460.0,0.00019999,2]
[365974011,1750002639940,-460.0,0.00019999,2]
[365974012,1750002639949,-460.0,0.00019999,2]
[365974013,1750002639958,-460.0,0.0002,2]
[365974014,1750002639968,-347.238467,0.00020187,2]
[365974015,1750002639977,-558.74,0.00020266,2]
[365974016,1750002639987,-460.0,0.00020266,2]
[365974017,1750002639996,-460.0,0.00020266,2]
[365974018,1750002640005,-460.0,0.00020266,2]
[365974019,1750002640015,-165.8047731,0.00020267,2]
[365974020,1750002640030,-460.0,0.00020268,2]
[365974021,1750002640040,-460.0,0.00020268,2]
[365974022,1750002640049,-460.0,0.00020268,2]
[365974023,1750002640059,-460.0,0.0002027,2]
[365974024,1750002640070,-358.42829158,0.0002027,2]
[365974025,1750002640079,-460.0,0.00020271,2]
[365974026,1750002640088,-460.0,0.00020271,2]
[365974027,1750002640098,-460.0,0.00020271,2]
[365974028,1750002640108,-460.0,0.00020271,2]
[365974029,1750002640118,-460.0,0.00020271,2]
[365974030,1750002640127,-543.94,0.00020273,2]
[365974031,1750002640137,-460.0,0.00020273,2]
[365974032,1750002640146,-460.0,0.00020273,2]
[365974033,1750002640156,-424.47602138,0.00020309,2]
[365974034,1750002640166,-213.32089821,0.00020309,2]
[365974035,1750002640176,-229.86375354,0.00020309,2]
[365974036,1750002640186,-835.55256958,0.00020309,2]
[365974037,1750002640196,-160.0,0.00020309,2]
[365974038,1750002640205,-187.042,0.00020481,2]
[365974039,1750002640215,-558.74,0.0002054,2]
[365974040,1750002640225,-460.0,0.0002054,2]
[365974041,1750002640235,-460.0,0.0002054,2]
[365974042,1750002640244,-460.0,0.0002054,2]
[365974043,1750002640255,-460.0,0.00020542,2]
[365974044,1750002640264,-460.0,0.00020542,2]
[365974045,1750002640274,-460.0,0.00020542,2]
[365974046,1750002640284,-460.0,0.00020544,2]
[365974047,1750002640294,-460.0,0.00020545,2]
[365974048,1750002640303,-537.38745725,0.00020545,2]
[365974049,1750002640312,-460.0,0.00020545,2]
[365974050,1750002640322,-460.0,0.00020545,2]
[365974051,1750002640332,-460.0,0.00020545,2]
[365974052,1750002640341,-460.0,0.00020547,2]
[365974053,1750002640351,-460.0,0.00020547,2]
[365974054,1750002640360,-373.93,0.000206,2]
[365974055,1750002640370,-168.0,0.00020785,2]
[365974056,1750002640379,-455.96,0.00020806,10]
[365974057,1750002640388,-379.97,0.00020806,10]
[365974058,1750002640398,-316.64,0.00020809,10]
[365974059,1750002640407,-558.74,0.00020814,2]
[365974060,1750002640416,-460.0,0.00020814,2]
[365974061,1750002640426,-460.0,0.00020814,2]
[365974063,1750002640566,-460.0,0.00020814,2]
[365974066,1750002640579,-460.0,0.00020816,2]
[365974067,1750002640589,-460.0,0.00020816,2]
[365974069,1750002640600,-460.0,0.00020816,2]
[365974071,1750002640610,-460.0,0.00020818,2]
[365974073,1750002640620,-460.0,0.00020819,2]
[365974075,1750002640630,-541.36326936,0.00020819,2]
[365974076,1750002640641,-173.20643633,0.00020819,2]
[365974077,1750002640651,-460.0,0.00020819,2]
[365974078,1750002640661,-160.0,0.0002082,2]
[365974079,1750002640670,-460.0,0.00020821,2]
[365974080,1750002640680,-544.00224902,0.00020821,2]
[365974081,1750002640691,-420.0,0.00020899,2]
[365974082,1750002640700,-420.0,0.00020899,2]
[365974083,1750002640710,-168.0,0.00020973,2]
[365974085,1750002640722,-558.74,0.00021088,2]
[365974087,1750002640732,-460.0,0.00021088,2]
[365974089,1750002640742,-460.0,0.00021088,2]
[365974091,1750002640752,-460.0,0.00021088,2]
[365974093,1750002640761,-460.0,0.0002109,2]
[365974095,1750002640770,-460.0,0.0002109,2]
[365974097,1750002640780,-460.0,0.0002109,2]
[365974098,1750002640790,-460.0,0.00021092,2]
[365974099,1750002640799,-460.0,0.00021093,2]
[365974100,1750002640809,-460.0,0.00021093,2]
[365974101,1750002640819,-460.0,0.00021095,2]
[365974102,1750002640828,-600.0,0.00021164,2]
[365974104,1750002640839,-165.8047731,0.00021189,2]
[365974106,1750002640848,-168.0,0.00021312,2]
[365974108,1750002640857,-558.74,0.00021362,2]
[365974110,1750002640868,-460.0,0.00021362,2]